[Event "Gibraltar Amateurs B 2019"]
[Site "Caleta"]
[Date "2019.01.26"]
[Round "1"]
[White "Pink, Joshua"]
[Black "Whitworth, John"]
[Result "1-0"]
[ECO "C54"]
[WhiteElo "1890"]
[BlackElo "1690"]
[Annotator "NA"]
[PlyCount "135"]
[EventDate "2019.01.18"]
[EventType "swiss"]
[EventCountry "GGB"]
[SourceTitle "playchess.com"]
[Source "ChessBase"]
[SourceQuality "1"]
[TimeControl "6600+10"]

1. e4 {[%emt 0:00:05]} e5 {[%emt 0:00:00]} 2. Nf3 {[%emt 0:00:19]} Nc6 {[%emt 0:00:00]} 3. Bc4 {[%emt 0:00:20]} Bc5 {[%emt 0:00:00]} 4. c3 {[%emt 0:00:14]} Nf6 {[%emt 0:00:37]} 5. d4 {[%emt 0:00:11]} exd4 {[%emt 0:00:29]} 6. cxd4 {[%emt 0:00:24]} Bb4+ {[%emt 0:00:12]} 7. Nc3 {[%emt 0:01:32]} Nxe4 {[%emt 0:04:11]} 8. O-O {[%emt 0:01:24]} Bxc3 {[%emt 0:03:06]} 9. d5 {[%emt 0:01:36]} Ne5 {[%emt 0:00:50]} 10. Qe2 {[%emt 0:09:01]} O-O {[%emt 0:17:04]} 11. bxc3 {[%emt 0:14:19]} Nxc4 {[%emt 0:01:57]} 12. Qxe4 {[%emt 0:00:11]} Nd6 {[%emt 0:00:16]} 13. Qd3 {[%emt 0:05:34]} Qf6 {[%emt 0:01:35] LiveBook: 10 Games C54: Giuoco Piano: 4 c3 Nf6, main lines with 5 d4 and 5 d3} 14. Ba3 {[%emt 0:01:59]} (14. Re1 b6 15. Bg5 Qf5 16. Qxf5 Nxf5 17. g4 f6 18. Bf4 Nd6 19. Bxd6 cxd6 20. Nd4 Bb7 21. Nf5 {½-½ (37) Gashimov,V (2740)-Dominguez Perez,L (2713) Nice 2010}) 14... b6 {[%emt 0:03:10]} 15. Rfe1 {[%emt 0:02:36]} Bb7 {[%emt 0:01:04]} 16. Ne5 {[%emt 0:02:25]} Rfd8 {[%emt 0:05:14]} 17. Re3 $146 {[%emt 0:03:37]} ({Predecessor:} 17. Rad1 a5 18. c4 Ba6 19. Bb2 Qf5 20. Qd4 f6 21. Ng4 Nxc4 {1-0 (31) De Paula,B (1781)-Rogani,B (1968) Santos 2010}) 17... Qf5 {[%emt 0:06:40]} 18. Bxd6 {[%emt 0:10:50]} Qxd3 {[%emt 0:00:33]} 19. Rxd3 {[%emt 0:00:23]} cxd6 {[%emt 0:00:19]} 20. Nf3 {[%emt 0:02:30]} Re8 {[%emt 0:08:16]} 21. c4 $15 {[%emt 0:08:52]} Rac8 {[%emt 0:08:21]} 22. Nd2 {[%emt 0:06:26]} f6 {[%emt 0:03:23]} 23. f3 {[%emt 0:01:49]} f5 {[%emt 0:04:30]} 24. Kf2 {[%emt 0:00:06]} Ba6 {[%emt 0:01:47]} 25. Rc1 {[%emt 0:01:38]} Bb7 {[%emt 0:05:59]} 26. Re1 {[%emt 0:00:46]} Rxe1 {[%emt 0:01:29]} 27. Kxe1 {[%emt 0:00:02]} Kf7 {[%emt 0:00:52]} 28. Kf2 {[%emt 0:00:06]} Rc5 {[%emt 0:02:40]} 29. Ra3 {[%emt 0:02:02]} a6 {[%emt 0:01:27]} 30. Rb3 {[%emt 0:02:32]} b5 {[%emt 0:00:31]} 31. Ke3 {[%emt 0:00:40]} Ba8 {[%emt 0:07:35]} 32. Rb4 {[%emt 0:01:03]} bxc4 {[%emt 0:00:17]} 33. Nxc4 {[%emt 0:00:35]} Bxd5 {[%emt 0:03:10]} 34. Nxd6+ {[%emt 0:00:26]} Ke6 {[%emt 0:00:57]} 35. Nb7 {[%emt 0:06:24]} Bxb7 {[%emt 0:00:25]} 36. Rxb7 {[%emt 0:00:05]} Ra5 {[%emt 0:00:08]} 37. Rb6+ {[%emt 0:01:02]} Kd5 {[%emt 0:00:59]} 38. Rb7 {[%emt 0:00:10]} Kc6 {[%emt 0:00:05]} 39. Rb2 {[%emt 0:00:04]} g5 {[%emt 0:00:41]} 40. Kd4 {[%emt 0:01:29]} Rd5+ {[%emt 0:01:13]} 41. Kc4 {[%emt 0:00:23]} Rc5+ {[%emt 0:01:46]} 42. Kd4 {[%emt 0:00:05]} a5 {[%emt 0:01:46]} 43. a4 {[%emt 0:00:28]} h6 {[%emt 0:02:53]} 44. Re2 {[%emt 0:00:04]} Rd5+ {[%emt 0:00:17]} 45. Kc4 {[%emt 0:00:11]} Rd1 {[%emt 0:01:02]} 46. Re5 {[%emt 0:01:04]} d5+ {[%emt 0:01:57]} 47. Kc3 {[%emt 0:00:51]} f4 {[%emt 0:00:33]} 48. Re6+ {[%emt 0:00:15]} Kc5 {[%emt 0:00:01]} 49. Ra6 {[%emt 0:00:53]} d4+ {[%emt 0:00:33]} 50. Kc2 {[%emt 0:00:12]} Ra1 {[%emt 0:01:16]} 51. Rxa5+ {[%emt 0:00:52]} Kc4 {[%emt 0:00:37]} 52. Ra8 {[%emt 0:02:54]} Ra2+ {[%emt 0:00:03]} 53. Kc1 {[%emt 0:03:49]} Rxg2 {[%emt 0:03:01]} 54. a5 {[%emt 0:00:43]} Ra2 {[%emt 0:00:11]} 55. Kb1 {[%emt 0:01:11]} Ra4 {[%emt 0:00:21]} 56. a6 {[%emt 0:00:05]} Kd3 {[%emt 0:00:37]} 57. a7 {[%emt 0:00:46]} Kd2 {[%emt 0:00:10]} 58. Kb2 {[%emt 0:00:30]} d3 {[%emt 0:00:10]} 59. Kb3 {[%emt 0:00:13]} Ra6 {[%emt 0:00:01]} 60. h3 {[%emt 0:01:05]} Kd1 {[%emt 0:00:08]} 61. Kb2 {[%emt 0:01:22]} d2 {[%emt 0:00:16]} 62. Kb1 {[%emt 0:01:07]} Rb6+ {[%emt 0:00:02]} 63. Ka2 {[%emt 0:00:14]} Ra6+ {[%emt 0:00:07]} 64. Kb2 {[%emt 0:00:13]} Rc6 {[%emt 0:00:28]} 65. Rb8 {[%emt 0:02:36]} Rc2+ {[%emt 0:00:15]} 66. Kb3 {[%emt 0:00:20]} Rc1 {[%emt 0:00:16]} 67. a8=Q {[%emt 0:00:26]} Rb1+ {[%emt 0:00:01]} 68. Kc3 {[%emt 0:00:34]} 1-0

[Event "Gibraltar Amateurs B 2019"]
[Site "Caleta"]
[Date "2019.01.26"]
[Round "1"]
[White "Gonzalez Pabollet, Jesus Maria S"]
[Black "Fong, Mi Yen"]
[Result "0-1"]
[ECO "E61"]
[WhiteElo "1875"]
[BlackElo "1687"]
[Annotator "NA"]
[PlyCount "66"]
[EventDate "2019.01.18"]
[EventType "swiss"]
[EventCountry "GGB"]
[SourceTitle "playchess.com"]
[Source "ChessBase"]
[SourceQuality "1"]
[TimeControl "6600+10"]

1. Nf3 {[%emt 0:11:02]} Nf6 {[%emt 0:00:16]} 2. c4 {[%emt 0:00:26]} d6 {[%emt 0:01:38]} 3. Nc3 {[%emt 0:00:55]} g6 {[%emt 0:00:17]} 4. d4 {[%emt 0:08:25]} Bg7 {[%emt 0:01:13]} 5. Bg5 {[%emt 0:06:10]} O-O {[%emt 0:00:43]} 6. Qd2 {[%emt 0:01:18]} Nbd7 {[%emt 0:05:42]} 7. Rd1 {[%emt 0:13:45]} c5 {[%emt 0:07:53]} 8. e3 {[%emt 0:01:42]} h6 {[%emt 0:01:57]} 9. Bh4 {[%emt 0:05:52]} g5 {[%emt 0:05:56]} 10. Bg3 {[%emt 0:00:12]} Nh5 {[%emt 0:00:19]} 11. Be2 {[%emt 0:08:30]} a6 {[%emt 0:02:53]} 12. Qc2 {[%emt 0:19:42]} cxd4 {[%emt 0:06:51]} 13. exd4 $11 {[%emt 0:04:37]} Ndf6 {[%emt 0:15:14]} 14. Nd2 {[%emt 0:05:39]} Nxg3 {[%emt 0:15:32]} 15. hxg3 {[%emt 0:00:18]} d5 {[%emt 0:00:15]} 16. Nf3 {[%emt 0:08:07]} dxc4 {[%emt 0:07:11]} 17. Bxc4 {[%emt 0:00:34]} Bg4 {[%emt 0:00:17]} 18. Rd2 {[%emt 0:01:36]} Bxf3 {[%emt 0:03:26]} 19. gxf3 {[%emt 0:00:02]} Rc8 {[%emt 0:00:49]} 20. Bb3 {[%emt 0:03:45]} Re8 {[%emt 0:03:17]} 21. Qg6 {[%emt 0:02:04]} e6 {[%emt 0:01:10]} 22. Qd3 {[%emt 0:00:02]} Nd5 {[%emt 0:14:04]} 23. Bc2 {[%emt 0:01:51]} f5 {[%emt 0:00:36]} 24. Nxd5 {[%emt 0:00:47]} Qxd5 {[%emt 0:01:07]} 25. Bb3 {[%emt 0:01:27]} Rc1+ {[%emt 0:00:33]} 26. Ke2 {[%emt 0:00:07]} Rxh1 {[%emt 0:01:20]} 27. Bxd5 {[%emt 0:02:01]} exd5+ {[%emt 0:00:08]} 28. Qe3 {[%emt 0:00:02]} Rxe3+ {[%emt 0:00:13]} 29. Kxe3 {[%emt 0:02:25]} Rc1 {[%emt 0:00:24]} 30. b3 {[%emt 0:00:20]} Kf7 {[%emt 0:00:44]} 31. f4 {[%emt 0:00:25]} Rc3+ {[%emt 0:00:28]} 32. Rd3 {[%emt 0:00:34]} Rxd3+ {[%emt 0:00:26]} 33. Kxd3 {[%emt 0:00:01]} gxf4 {[%emt 0:00:08]} 0-1

[Event "Gibraltar Amateurs B 2019"]
[Site "Caleta"]
[Date "2019.01.26"]
[Round "1"]
[White "Lochte, Szilvia"]
[Black "Guardia Bencomo, Tomas"]
[Result "1-0"]
[ECO "A20"]
[WhiteElo "1868"]
[BlackElo "1664"]
[Annotator "NA"]
[PlyCount "41"]
[EventDate "2019.01.18"]
[EventType "swiss"]
[EventCountry "GGB"]
[SourceTitle "playchess.com"]
[Source "ChessBase"]
[SourceQuality "1"]
[TimeControl "6600+10"]

1. c4 {[%emt 0:00:00]} e5 {[%emt 0:00:22]} 2. g3 {[%emt 0:00:13]} f5 {[%emt 0:00:44]} 3. d4 {[%emt 0:04:37]} Bb4+ {[%emt 0:03:22]} 4. Nc3 {[%emt 0:01:36]} exd4 {[%emt 0:04:29]} 5. Qxd4 {[%emt 0:00:09]} Qf6 {[%emt 0:01:52]} 6. Qxf6 {[%emt 0:12:05]} Nxf6 {[%emt 0:01:58]} 7. Bd2 {[%emt 0:00:12]} Nc6 {[%emt 0:01:48]} 8. Nf3 {[%emt 0:00:31]} O-O {[%emt 0:02:22]} 9. Bg2 {[%emt 0:02:02]} Bxc3 {[%emt 0:00:39]} 10. Bxc3 {[%emt 0:00:22]} Ne4 {[%emt 0:00:19]} 11. Rc1 {[%emt 0:01:36]} f4 {[%emt 0:01:39]} 12. O-O {[%emt 0:06:53]} fxg3 {[%emt 0:01:21]} 13. hxg3 {[%emt 0:02:44]} Nxc3 {[%emt 0:00:14]} 14. Rxc3 {[%emt 0:00:27]} d6 {[%emt 0:00:37]} 15. Ng5 {[%emt 0:04:32]} Bd7 {[%emt 0:01:15]} 16. Bd5+ {[%emt 0:00:19]} Kh8 {[%emt 0:00:40]} 17. Nf7+ {[%emt 0:00:24]} Kg8 {[%emt 0:00:18]} 18. Nxd6+ {[%emt 0:02:34]} Kh8 {[%emt 0:00:09]} 19. Nf7+ {[%emt 0:00:23]} Kg8 {[%emt 0:00:14]} 20. Ne5+ {[%emt 0:01:15]} Kh8 {[%emt 0:00:16]} 21. Nxd7 {[%emt 0:00:37]} 1-0

[Event "Gibraltar Amateurs B 2019"]
[Site "Caleta"]
[Date "2019.01.26"]
[Round "1"]
[White "Robson, Paul E"]
[Black "Moreno Guerrero, Idelfonso"]
[Result "1-0"]
[ECO "B02"]
[WhiteElo "1861"]
[BlackElo "1651"]
[Annotator "NA"]
[PlyCount "55"]
[EventDate "2019.01.18"]
[EventType "swiss"]
[EventCountry "GGB"]
[SourceTitle "playchess.com"]
[Source "ChessBase"]
[SourceQuality "1"]
[TimeControl "6600+10"]

1. e4 {[%emt 0:00:00]} Nf6 {[%emt 0:00:31]} 2. e5 {[%emt 0:00:00]} Nd5 {[%emt 0:02:08]} 3. Nc3 {[%emt 0:00:07]} Nxc3 {[%emt 0:01:01]} 4. dxc3 {[%emt 0:00:05]} d6 {[%emt 0:00:58]} 5. Nf3 {[%emt 0:00:44]} Bg4 {[%emt 0:01:54]} 6. Bc4 {[%emt 0:03:31]} e6 {[%emt 0:01:30]} 7. Bf4 {[%emt 0:02:12]} Be7 {[%emt 0:02:56]} 8. h3 {[%emt 0:06:58]} dxe5 {[%emt 0:07:01]} 9. Qxd8+ {[%emt 0:00:49]} Bxd8 {[%emt 0:00:15]} 10. Nxe5 {[%emt 0:00:40]} Bf5 {[%emt 0:01:33]} 11. O-O-O {[%emt 0:00:23]} h6 {[%emt 0:01:44]} 12. Rxd8+ {[%emt 0:01:34]} Kxd8 {[%emt 0:00:16]} 13. Nxf7+ {[%emt 0:00:09]} Ke7 {[%emt 0:01:20]} 14. Nxh8 {[%emt 0:00:20]} Nd7 {[%emt 0:01:19]} 15. g4 {[%emt 0:05:46]} Bh7 {[%emt 0:01:31]} 16. Re1 {[%emt 0:01:32]} Nf8 {[%emt 0:02:43]} 17. Be5 {[%emt 0:04:01]} g6 {[%emt 0:03:11]} 18. Bg7 {[%emt 0:02:19]} h5 $18 {[%emt 0:00:27]} 19. g5 {[%emt 0:02:19]} Bg8 {[%emt 0:00:52]} 20. Bxf8+ {[%emt 0:01:36]} Kxf8 {[%emt 0:00:20]} 21. Nxg6+ {[%emt 0:00:19]} Kg7 {[%emt 0:00:44]} 22. Ne5 {[%emt 0:01:08]} Rf8 {[%emt 0:00:51]} 23. f3 {[%emt 0:01:29]} c6 {[%emt 0:02:01]} 24. Bd3 {[%emt 0:04:41]} a6 {[%emt 0:01:35]} 25. Be4 {[%emt 0:02:00]} Rf4 {[%emt 0:01:33]} 26. Rd1 {[%emt 0:00:28]} h4 {[%emt 0:03:55]} 27. Rd7+ {[%emt 0:00:22]} Bf7 {[%emt 0:00:28]} 28. g6 {[%emt 0:03:19]} 1-0

[Event "Gibraltar Amateurs B 2019"]
[Site "Caleta"]
[Date "2019.01.26"]
[Round "1"]
[White "Johansson, Daniel 1984"]
[Black "Muelas Delgado, Ricardo"]
[Result "1-0"]
[ECO "B44"]
[WhiteElo "1859"]
[BlackElo "1626"]
[Annotator "NA"]
[PlyCount "71"]
[EventDate "2019.01.18"]
[EventType "swiss"]
[EventCountry "GGB"]
[SourceTitle "playchess.com"]
[Source "ChessBase"]
[SourceQuality "1"]
[TimeControl "6600+10"]

1. e4 {[%emt 0:05:11]} c5 {[%emt 0:00:07]} 2. g3 {[%emt 0:00:13]} Nc6 {[%emt 0:05:13]} 3. Bg2 {[%emt 0:00:19]} e6 {[%emt 0:01:50]} 4. Ne2 {[%emt 0:01:35]} d5 {[%emt 0:01:16]} 5. exd5 {[%emt 0:00:33]} exd5 {[%emt 0:00:15]} 6. d4 {[%emt 0:02:55]} Nf6 {[%emt 0:09:41]} 7. O-O {[%emt 0:04:32]} cxd4 {[%emt 0:18:59]} 8. Nxd4 {[%emt 0:01:21]} Be7 {[%emt 0:00:22]} 9. h3 {[%emt 0:05:55]} O-O {[%emt 0:02:28]} 10. c3 {[%emt 0:10:12]} Qb6 {[%emt 0:07:31]} 11. Nb3 {[%emt 0:03:08]} Be6 {[%emt 0:09:24]} 12. Be3 {[%emt 0:01:48]} Qc7 {[%emt 0:00:18]} 13. Nd4 {[%emt 0:03:57]} Qd7 {[%emt 0:03:19]} 14. Kh2 {[%emt 0:06:12]} h5 {[%emt 0:03:54]} 15. Nd2 $14 {[%emt 0:05:35]} Ne5 {[%emt 0:07:44]} 16. Qe2 {[%emt 0:06:52]} h4 {[%emt 0:09:10]} 17. g4 {[%emt 0:11:54]} Qc7 {[%emt 0:03:41]} 18. f4 {[%emt 0:04:53]} Nc4 {[%emt 0:09:36]} 19. Nxc4 {[%emt 0:04:03]} dxc4 {[%emt 0:01:21]} 20. Nxe6 {[%emt 0:01:46]} fxe6 {[%emt 0:00:16]} 21. Bd4 {[%emt 0:01:27]} Rae8 {[%emt 0:04:37]} 22. Qxe6+ {[%emt 0:02:56]} Kh8 {[%emt 0:00:11]} 23. Be5 {[%emt 0:02:11]} Qc5 {[%emt 0:02:02]} 24. Rae1 {[%emt 0:05:13]} Qb5 {[%emt 0:02:51]} 25. Qf5 {[%emt 0:06:16]} Nd5 {[%emt 0:06:19]} 26. Qh5+ {[%emt 0:01:50]} Kg8 {[%emt 0:00:11]} 27. Bxg7 {[%emt 0:06:58]} Kxg7 {[%emt 0:00:30]} 28. Bxd5 {[%emt 0:00:38]} Qd7 {[%emt 0:00:49]} 29. Re6 {[%emt 0:01:17]} Bf6 {[%emt 0:00:42]} 30. Rfe1 {[%emt 0:00:43]} Rxe6 {[%emt 0:00:05]} 31. Rxe6 {[%emt 0:00:21]} Qc7 {[%emt 0:00:12]} 32. Qf5 {[%emt 0:00:23]} Qf7 {[%emt 0:00:15]} 33. Rd6 {[%emt 0:00:48]} Qe8 {[%emt 0:00:07]} 34. Rd7+ {[%emt 0:00:11]} Be7 {[%emt 0:00:11]} 35. Qg5+ {[%emt 0:00:27]} Kh8 {[%emt 0:00:04]} 36. Qh6# {[%emt 0:00:10]} 1-0

[Event "Gibraltar Amateurs B 2019"]
[Site "Caleta"]
[Date "2019.01.26"]
[Round "1"]
[White "D`haluin, Wim"]
[Black "Cernuda Orejas, Victor Manuel"]
[Result "0-1"]
[ECO "A46"]
[WhiteElo "1702"]
[BlackElo "1893"]
[Annotator "NA"]
[PlyCount "35"]
[EventDate "2019.01.18"]
[EventType "swiss"]
[EventCountry "GGB"]
[SourceTitle "playchess.com"]
[Source "ChessBase"]
[SourceQuality "1"]
[TimeControl "6600+10"]

1. d4 {[%emt 0:00:00]} c6 {[%emt 0:00:10]} 2. Nf3 {[%emt 0:00:24]} Nf6 {[%emt 0:01:21]} 3. Nbd2 {[%emt 0:01:52]} d5 {[%emt 0:00:20]} 4. Nb3 {[%emt 0:01:50]} Bg4 {[%emt 0:00:20]} 5. Bf4 {[%emt 0:00:57]} Bxf3 {[%emt 0:00:29]} 6. exf3 {[%emt 0:01:23]} e6 {[%emt 0:00:12]} 7. Be2 {[%emt 0:02:49]} Bd6 {[%emt 0:00:33]} 8. Bg5 {[%emt 0:04:16]} Nbd7 {[%emt 0:00:41]} 9. O-O {[%emt 0:00:22]} Qc7 {[%emt 0:00:25]} 10. g3 {[%emt 0:03:37]} h6 {[%emt 0:00:08]} 11. Bd2 {[%emt 0:02:42]} h5 {[%emt 0:00:18]} 12. c4 {[%emt 0:01:41]} dxc4 {[%emt 0:00:54]} 13. Bxc4 {[%emt 0:00:17]} h4 {[%emt 0:00:14]} 14. Qe1 {[%emt 0:07:20]} Nh5 {[%emt 0:00:50]} 15. Kg2 {[%emt 0:03:06]} Nb6 {[%emt 0:03:31]} 16. Rc1 {[%emt 0:03:02]} Qe7 {[%emt 0:02:02]} 17. Bg5 {[%emt 0:12:16]} Qxg5 {[%emt 0:01:17]} 18. Bd3 $19 {[%emt 0:00:03]} 0-1

[Event "Gibraltar Amateurs B 2019"]
[Site "Caleta"]
[Date "2019.01.26"]
[Round "1"]
[White "Butusina, Samuel"]
[Black "Valladolid Martin, Fco. Jose"]
[Result "0-1"]
[ECO "A00"]
[WhiteElo "1688"]
[BlackElo "1878"]
[Annotator "NA"]
[PlyCount "58"]
[EventDate "2019.01.18"]
[EventType "swiss"]
[EventCountry "GGB"]
[SourceTitle "playchess.com"]
[Source "ChessBase"]
[SourceQuality "1"]
[TimeControl "6600+10"]

1. b4 {[%emt 0:01:13]} e5 {[%emt 0:05:54]} 2. Bb2 {[%emt 0:00:06]} Bxb4 {[%emt 0:00:13]} 3. Bxe5 {[%emt 0:00:07]} Nf6 {[%emt 0:00:08]} 4. Nc3 {[%emt 0:00:05]} O-O {[%emt 0:00:21]} 5. Bxf6 {[%emt 0:00:06]} Qxf6 {[%emt 0:00:18]} 6. Nd5 {[%emt 0:00:02]} Qd6 {[%emt 0:00:45]} 7. Nxb4 {[%emt 0:00:08]} Qxb4 {[%emt 0:00:04]} 8. Nf3 {[%emt 0:01:38]} d5 {[%emt 0:00:14]} 9. e3 {[%emt 0:11:10]} Qe7 {[%emt 0:00:53]} 10. c4 {[%emt 0:03:28]} Be6 {[%emt 0:02:20]} 11. Qc2 {[%emt 0:08:32]} c5 {[%emt 0:05:25]} 12. Bd3 {[%emt 0:12:18]} h6 {[%emt 0:05:25]} 13. O-O {[%emt 0:09:12]} Nc6 {[%emt 0:01:11]} 14. a3 {[%emt 0:01:35]} Rfd8 {[%emt 0:01:03]} 15. cxd5 {[%emt 0:07:37]} Bxd5 {[%emt 0:00:53]} 16. Be2 {[%emt 0:02:21]} b6 {[%emt 0:09:40]} 17. Rfd1 {[%emt 0:02:27]} Na5 {[%emt 0:04:36]} 18. Qc3 {[%emt 0:02:11]} Rac8 $15 {[%emt 0:03:52]} (18... Nb3 $5 19. Rab1 $8 {[#]} Nd4 $1 {[%mdl 512]} 20. Nxd4 cxd4 $11) 19. Ne1 {[%emt 0:07:18]} Bb3 {[%emt 0:06:21]} 20. Nc2 {[%emt 0:02:12]} Rc6 {[%emt 0:04:19]} 21. Rdb1 {[%emt 0:06:55]} Ba4 {[%emt 0:09:20]} 22. Bb5 {[%emt 0:02:00]} Bxb5 {[%emt 0:00:08]} 23. Rxb5 {[%emt 0:00:01]} Qd7 {[%emt 0:00:07]} 24. Rd1 {[%emt 0:07:31]} Rd6 {[%emt 0:02:20]} 25. Rxc5 {[%emt 0:01:12]} bxc5 {[%emt 0:00:27]} 26. Qxa5 {[%emt 0:00:16]} Rxd2 {[%emt 0:00:49]} 27. Rc1 {[%emt 0:00:29]} Rd1+ {[%emt 0:00:12]} 28. Rxd1 {[%emt 0:00:05]} Qxd1+ {[%emt 0:00:05]} 29. Ne1 {[%emt 0:00:03]} Qd2 {[%emt 0:00:38]} 0-1

[Event "Gibraltar Amateurs B 2019"]
[Site "Caleta"]
[Date "2019.01.26"]
[Round "1"]
[White "Krause, Helmut"]
[Black "Leimeister, Winfried"]
[Result "0-1"]
[ECO "A43"]
[WhiteElo "1668"]
[BlackElo "1870"]
[Annotator "NA"]
[PlyCount "76"]
[EventDate "2019.01.18"]
[EventType "swiss"]
[EventCountry "GGB"]
[SourceTitle "playchess.com"]
[Source "ChessBase"]
[SourceQuality "1"]
[TimeControl "6600+10"]

1. d4 {[%emt 0:00:00]} Nf6 {[%emt 0:00:07]} 2. Nf3 {[%emt 0:00:02]} c5 {[%emt 0:00:56]} 3. d5 {[%emt 0:00:52]} g6 {[%emt 0:02:00]} 4. Nc3 {[%emt 0:00:07]} Bg7 {[%emt 0:00:52]} 5. e4 {[%emt 0:00:43]} d6 {[%emt 0:01:11]} 6. Be2 {[%emt 0:02:38]} O-O {[%emt 0:01:45]} 7. O-O {[%emt 0:02:59]} a6 {[%emt 0:10:08]} 8. a4 {[%emt 0:05:30]} b6 {[%emt 0:10:42]} 9. Bg5 {[%emt 0:06:52]} h6 {[%emt 0:03:21]} 10. Bd2 {[%emt 0:05:07]} e6 {[%emt 0:04:09]} 11. Qc1 {[%emt 0:18:50]} exd5 {[%emt 0:01:28]} 12. exd5 {[%emt 0:04:42]} Kh7 {[%emt 0:00:14]} 13. h3 {[%emt 0:08:35]} Bb7 {[%emt 0:02:45]} 14. Bc4 {[%emt 0:02:07]} Nbd7 {[%emt 0:09:34]} 15. Bf4 {[%emt 0:02:31]} Ne8 {[%emt 0:03:13]} 16. Re1 {[%emt 0:03:17]} Qc7 $16 {[%emt 0:00:49]} (16... Ndf6 $11 {remains equal.}) 17. Qd2 {[%emt 0:04:47]} Ne5 {[%emt 0:02:16]} 18. Qe2 {[%emt 0:07:10]} Nxc4 {[%emt 0:09:31]} 19. Qxc4 {[%emt 0:00:11]} Nf6 {[%emt 0:00:42]} 20. Rad1 {[%emt 0:05:39]} Rfe8 {[%emt 0:03:35]} 21. b3 {[%emt 0:06:49]} Qd7 {[%emt 0:03:54]} 22. Nd2 {[%emt 0:03:09]} Nh5 {[%emt 0:03:00]} 23. Ndb1 {[%emt 0:04:14]} b5 {[%emt 0:02:02]} 24. axb5 {[%emt 0:05:28]} axb5 {[%emt 0:00:40]} 25. Nxb5 {[%emt 0:01:17]} Ba6 {[%emt 0:12:54]} 26. Rxe8 {[%emt 0:04:34]} Rxe8 {[%emt 0:00:28]} 27. Bxd6 {[%emt 0:02:50]} Bxb5 {[%emt 0:02:08]} 28. Qxc5 {[%emt 0:00:11]} Rc8 {[%emt 0:00:14]} 29. Qb6 {[%emt 0:01:56]} Rxc2 {[%emt 0:01:10]} 30. Na3 {[%emt 0:00:08]} Be2 {[%emt 0:00:08]} 31. Re1 {[%emt 0:00:24]} Rd2 {[%emt 0:01:20]} 32. Nc4 {[%emt 0:00:14]} Bxc4 {[%emt 0:01:39]} 33. bxc4 {[%emt 0:00:02]} Bd4 {[%emt 0:00:09]} 34. Qc6 {[%emt 0:00:04]} Bxf2+ {[%emt 0:00:14]} 35. Kh1 {[%emt 0:00:02]} Qxc6 {[%emt 0:01:48]} 36. dxc6 {[%emt 0:00:01]} Rxd6 {[%emt 0:00:19]} 37. c7 {[%emt 0:00:28]} Rc6 {[%emt 0:00:32]} 38. Re7 {[%emt 0:00:02]} Kg7 {[%emt 0:00:19]} 0-1

[Event "Gibraltar Amateurs B 2019"]
[Site "Caleta"]
[Date "2019.01.26"]
[Round "1"]
[White "Gillis Glastone, Philippe"]
[Black "Bryant, Richard B E"]
[Result "1-0"]
[ECO "A80"]
[WhiteElo "1658"]
[BlackElo "1862"]
[Annotator "NA"]
[PlyCount "49"]
[EventDate "2019.01.18"]
[EventType "swiss"]
[EventCountry "GGB"]
[SourceTitle "playchess.com"]
[Source "ChessBase"]
[SourceQuality "1"]
[TimeControl "6600+10"]

1. d4 {[%emt 0:00:00]} e6 {[%emt 0:00:00]} 2. Bf4 {[%emt 0:00:04]} f5 {[%emt 0:00:06]} 3. Nf3 {[%emt 0:00:32]} Nf6 {[%emt 0:00:16]} 4. e3 {[%emt 0:00:46]} Be7 {[%emt 0:00:28]} 5. Bd3 {[%emt 0:00:42]} O-O {[%emt 0:00:34]} 6. Nbd2 {[%emt 0:00:59] A80: Dutch Defence: Unusual White second moves} (6. O-O b6 7. c4 Bb7 8. Nc3 Ne4 9. Bxe4 fxe4 10. Nd2 d5 11. Qg4 Rf6 12. Rac1 c6 13. f3 exf3 14. Rxf3 {1-0 (47) Taylor,A (2309)-Cumbers,P (2167) England 2018}) 6... d6 {[%emt 0:00:37]} 7. Qe2 {[%emt 0:06:51]} Nc6 {[%emt 0:02:30]} 8. c3 {[%emt 0:03:09]} Nh5 {[%emt 0:01:29]} 9. h4 $146 {[%emt 0:06:25]} ({Predecessor:} 9. h3 Nxf4 10. exf4 Kh8 11. O-O-O d5 12. Kb1 Qe8 13. Rde1 {½-½ (13) Golz,W-Liebert,H Premnitz 1961}) 9... Nxf4 {[%emt 0:01:02]} 10. exf4 {[%emt 0:00:06]} Bf6 {[%emt 0:03:38]} 11. O-O-O {[%emt 0:04:27]} Ne7 {[%emt 0:11:29]} 12. h5 {[%emt 0:15:10]} Nd5 {[%emt 0:03:11]} 13. g3 {[%emt 0:01:34]} c6 {[%emt 0:04:07]} 14. Nc4 {[%emt 0:03:16]} b5 {[%emt 0:01:42]} 15. Ne3 {[%emt 0:00:23]} Qa5 {[%emt 0:06:09]} 16. Nxd5 {[%emt 0:01:16]} cxd5 {[%emt 0:03:35]} 17. Kb1 {[%emt 0:06:16]} Bd7 {[%emt 0:00:29]} 18. g4 {[%emt 0:06:22]} fxg4 {[%emt 0:07:09]} 19. Ng5 $11 {[%emt 0:02:33]} (19. Ne5 $5 dxe5 20. dxe5 $15) 19... Bxg5 {[%emt 0:12:44]} 20. fxg5 {[%emt 0:09:07]} Rf4 {[%emt 0:00:21]} 21. Qc2 {[%emt 0:02:26]} Raf8 {[%emt 0:01:49]} 22. h6 {[%emt 0:08:04]} Rxf2 {[%emt 0:01:07]} 23. Bxh7+ {[%emt 0:00:55]} Kh8 {[%emt 0:00:13]} 24. hxg7+ {[%emt 0:00:13]} Kxg7 {[%emt 0:00:06]} 25. Qg6+ {[%emt 0:00:10]} 1-0